Workbook

Sheet Balances
A1: Categoria | B1: Cuenta | C1: 25-12-31 | D1: 24-12-31
A2: ACTIVOS
B3: Efectivo en banco | C3: 36,000 € | D3: 13,000 €
B4: Bitcoin B | C4: 285,000 € | D4: 305,000 €
B5: Bitcoin A | C5: 40,000 € | D5: 0 €
B6: Inversiones tradicionales | C6: 129,000 € | D6: 125,000 €
B7: Otros | C7: 16,000 € | D7: 17,000 €
B8: Activos Eli | C8: 33,000 € | D8: 42,000 €
B9: TOTAL ACTIVOS | C9: =SUM(C3:C8) -> 539,000 € | D9: =SUM(D3:D8) -> 502,000 €
A10: PASIVOS
B11: Bankinter 1 (saylor 1) | C11: 24,000 € | D11: 27,000 €
B12: Bankinter 2 (saylor 2) | C12: 19,000 € | D12: 0 €
B13: Pignorado Myinvestor (saylor 3) | C13: 27,000 € | D13: 0 €
B14: Moto Kawi | C14: 7,500 € | D14: 8,500 €
B15: TOTAL PASIVOS | C15: =SUM(C11:C14) -> 77,500 € | D15: =SUM(D11:D14) -> 35,500 €
A16: PATRIMONITO NETO | C16: =C9-C15 -> 461,500 € | D16: =D9-D15 -> 466,500 €

Sheet PL
A1: INGRESOS
B2: Trabajo
C3: Galoy | D3: 32,500 €
C4: Superhog | D4: 17,300 €
C5: Baja | D5: 11,300 €
B6: Total Trabajo | D6: =SUM(D3:D5) -> 61,100 €
B7: Otros | D7: 6,300 €
B8: Eli | D8: 10,000 €
B9: TOTAL INGRESOS | D9: =SUM(D6:D8) -> 77,400 €
A10: GASTOS
B11: Pablo | D11: 29,600 €
B12: Eli | D12: 18,000 €
B13: TOTAL GASTOS | D13: =SUM(D11:D12) -> 47,600 €
A14: AHORRO | D14: =D9-D13 -> 29,800 €

Sheet Préstamos
B1: Saylor 1 | C1: Saylor 2 | D1: Saylor 3 | E1: Total
A2: Capital inicial préstamo | B2: 33,000.00 € | C2: 20,000.00 € | D2: 28,000.00 € | E2: =SUM(B2:D2) -> 81,000.00 €
A3: Capital pendiente de amortizar a cierre de 2025 | B3: 23,900.00 € | C3: 18,500.00 € | D3: 27,250.00 € | E3: =SUM(B3:D3) -> 69,650.00 €
A4: Intereses pagados acumulados a cierre de 2025 | B4: 5,650.00 € | C4: 1,200.00 € | D4: 500.00 € | E4: =SUM(B4:D4) -> 7,350.00 €
A5: Valor actual de los activos comprados | B5: 108,000.00 € | C5: 11,600.00 € | D5: 27,625.00 € | E5: =SUM(B5:D5) -> 147,225.00 €
A6: Valor de salida | B6: =B5-B3 -> 84,100.00 € | C6: =C5-C3 -> -6,900.00 € | D6: =D5-D3 -> 375.00 € | E6: =SUM(B6:D6) -> 77,575.00 €
A7: Retorno hasta la fecha | B7: =(B6-B4)/B2 -> 237.73% | C7: =(C6-C4)/C2 -> -40.50% | D7: =(D6-D4)/D2 -> -0.45%
